[Event "*** Titled Tuesday Blitz"]
[Site "Chess.com"]
[Date "2020.05.05"]
[Round "8"]
[White "matiss90"]
[Black "vinniethepooh"]
[Result "0-1"]
[WhiteElo "2515"]
[BlackElo "2677"]
[TimeControl "180+1"]
[EndTime "11:37:12 PDT"]
[Termination "vinniethepooh won by checkmate"]

1. e4 {[%clk 0:03:00.9]} 1... c5 {[%clk 0:02:59.6]} 2. Nf3 {[%clk 0:03:00.4]}
2... d6 {[%clk 0:02:59.5]} 3. d4 {[%clk 0:03:00.8]} 3... cxd4 {[%clk 0:03:00.4]}
4. Nxd4 {[%clk 0:03:01.6]} 4... Nf6 {[%clk 0:02:59.1]} 5. Nc3 {[%clk 0:03:02]}
5... a6 {[%clk 0:02:59.6]} 6. Bc4 {[%clk 0:03:02.2]} 6... e6 {[%clk 0:02:58]} 7.
Bb3 {[%clk 0:03:01.8]} 7... Nbd7 {[%clk 0:02:55.1]} 8. Bg5 {[%clk 0:03:00.6]}
8... Nc5 {[%clk 0:02:53.9]} 9. f4 {[%clk 0:02:59.5]} 9... Be7 {[%clk 0:02:47.4]}
10. Qf3 {[%clk 0:02:58.8]} 10... Qc7 {[%clk 0:02:44.7]} 11. O-O {[%clk
0:02:58.1]} 11... b5 {[%clk 0:02:37.6]} 12. e5 {[%clk 0:02:23.6]} 12... Bb7
{[%clk 0:02:36.9]} 13. exd6 {[%clk 0:02:01.3]} 13... Bxd6 {[%clk 0:02:30.2]} 14.
Qh3 {[%clk 0:01:49.9]} 14... Qb6 {[%clk 0:02:16.9]} 15. Kh1 {[%clk 0:01:45]}
15... Nxb3 {[%clk 0:02:03.9]} 16. Nxb3 {[%clk 0:01:42.3]} 16... b4 {[%clk
0:02:03.5]} 17. Bxf6 {[%clk 0:01:34]} 17... gxf6 {[%clk 0:02:01.7]} 18. Ne2
{[%clk 0:01:31.7]} 18... Rg8 {[%clk 0:02:00.7]} 19. Ng3 {[%clk 0:01:31.8]} 19...
Rg7 {[%clk 0:01:18.5]} 20. Qh6 {[%clk 0:01:13.2]} 20... Rg6 {[%clk 0:01:12.5]}
21. Qxh7 {[%clk 0:01:12]} 21... f5 {[%clk 0:01:04.8]} 22. Rad1 {[%clk
0:01:04.2]} 22... Rc8 {[%clk 0:01:01.5]} 23. Nd4 {[%clk 0:01:02.6]} 23... Qc5
{[%clk 0:00:51.6]} 24. Ndxf5 {[%clk 0:00:41.3]} 24... Bxg2+ {[%clk 0:00:16.1]}
25. Kxg2 {[%clk 0:00:40.3]} 25... Qxf5 {[%clk 0:00:16.4]} 26. Qh8+ {[%clk
0:00:31.1]} 26... Bf8 {[%clk 0:00:14]} 27. Rf2 {[%clk 0:00:20.4]} 27... Rxc2
{[%clk 0:00:12.1]} 28. Re1 {[%clk 0:00:05.4]} 28... Rxf2+ {[%clk 0:00:08.6]} 29.
Kxf2 {[%clk 0:00:06.3]} 29... Qxf4+ {[%clk 0:00:09.1]} 30. Kg2 {[%clk
0:00:06.6]} 30... Qd2+ {[%clk 0:00:07.8]} 31. Kf1 {[%clk 0:00:06.2]} 31... Rg4
{[%clk 0:00:04.5]} 32. Re2 {[%clk 0:00:04.1]} 32... Rf4+ {[%clk 0:00:03.9]} 33.
Kg2 {[%clk 0:00:04.4]} 33... Qd5+ {[%clk 0:00:04.1]} 34. Kh3 {[%clk 0:00:04.6]}
34... Qf3 {[%clk 0:00:02.7]} 35. Qh7 {[%clk 0:00:02.7]} 35... Qg4+ {[%clk
0:00:02.2]} 36. Kg2 {[%clk 0:00:02.6]} 36... Qf3+ {[%clk 0:00:02.7]} 37. Kh3
{[%clk 0:00:03.2]} 37... Be7 {[%clk 0:00:03.1]} 38. Qh8+ {[%clk 0:00:03]} 38...
Kd7 {[%clk 0:00:02.7]} 39. Rd2+ {[%clk 0:00:03.3]} 39... Kc7 {[%clk 0:00:03.1]}
40. Qe5+ {[%clk 0:00:02.9]} 40... Kb7 {[%clk 0:00:02.5]} 41. Rd7+ {[%clk
0:00:02.7]} 41... Kc6 {[%clk 0:00:02.6]} 42. Qc7+ {[%clk 0:00:02.6]} 42... Kb5
{[%clk 0:00:02.5]} 43. Qb7+ {[%clk 0:00:02.8]} 43... Kc5 {[%clk 0:00:02.5]} 44.
Qxf3 {[%clk 0:00:02.5]} 44... Rxf3 {[%clk 0:00:02.5]} 45. Rxe7 {[%clk
0:00:03.4]} 45... Rf2 {[%clk 0:00:02.6]} 46. Kg4 {[%clk 0:00:03.7]} 46... Rxb2
{[%clk 0:00:02.2]} 47. h4 {[%clk 0:00:03.6]} 47... Rxa2 {[%clk 0:00:02.5]} 48.
h5 {[%clk 0:00:04]} 48... Rh2 {[%clk 0:00:02.8]} 49. Rxf7 {[%clk 0:00:03.4]}
49... b3 {[%clk 0:00:03.3]} 50. Re7 {[%clk 0:00:03.2]} 50... a5 {[%clk
0:00:02.5]} 51. Rb7 {[%clk 0:00:03.5]} 51... a4 {[%clk 0:00:02.8]} 52. Ne4+
{[%clk 0:00:03.1]} 52... Kd4 {[%clk 0:00:03.2]} 53. Nd6 {[%clk 0:00:02.5]} 53...
b2 {[%clk 0:00:03.2]} 54. Kg5 {[%clk 0:00:01.5]} 54... Kd3 {[%clk 0:00:02.7]}
55. h6 {[%clk 0:00:02.4]} 55... a3 {[%clk 0:00:03]} 56. Nb5 {[%clk 0:00:02.2]}
56... a2 {[%clk 0:00:02.9]} 57. Rd7+ {[%clk 0:00:02.2]} 57... Kc4 {[%clk
0:00:03.1]} 58. Nd6+ {[%clk 0:00:02.3]} 58... Kb3 {[%clk 0:00:03.5]} 59. Ne4
{[%clk 0:00:03.2]} 59... a1=Q {[%clk 0:00:03.7]} 60. Rd3+ {[%clk 0:00:03.4]}
60... Ka2 {[%clk 0:00:04.1]} 61. Nc3+ {[%clk 0:00:03.2]} 61... Kb3 {[%clk
0:00:04.2]} 62. Nb1+ {[%clk 0:00:03.3]} 62... Kc4 {[%clk 0:00:04.2]} 63. Rc3+
{[%clk 0:00:03.3]} 63... Kd4 {[%clk 0:00:04.7]} 64. Rb3 {[%clk 0:00:02.7]} 64...
Qxb1 {[%clk 0:00:05]} 65. Kf6 {[%clk 0:00:02.9]} 65... Qf1+ {[%clk 0:00:05.1]}
66. Ke7 {[%clk 0:00:03.8]} 66... b1=Q {[%clk 0:00:05.3]} 67. Kd6 {[%clk
0:00:04.7]} 67... Qxb3 {[%clk 0:00:05.1]} 68. h7 {[%clk 0:00:05.6]} 68... Rxh7
{[%clk 0:00:04.7]} 69. Kc6 {[%clk 0:00:04.8]} 69... Qa6# {[%clk 0:00:05.6]} 0-1

[Event "*** Titled Tuesday Blitz"]
[Site "Chess.com"]
[Date "2020.05.05"]
[Round "8"]
[White "Fins0905"]
[Black "dpopadic"]
[Result "1-0"]
[WhiteElo "2629"]
[BlackElo "2351"]
[TimeControl "180+1"]
[EndTime "11:37:19 PDT"]
[Termination "Fins0905 won on time"]

1. d4 {[%clk 0:03:00.9]} 1... Nf6 {[%clk 0:02:59.7]} 2. c4 {[%clk 0:02:59.8]}
2... g6 {[%clk 0:02:59.8]} 3. Nc3 {[%clk 0:02:59.7]} 3... Bg7 {[%clk 0:03:00.4]}
4. e4 {[%clk 0:02:58.2]} 4... d6 {[%clk 0:03:00.9]} 5. Nf3 {[%clk 0:02:57.7]}
5... O-O {[%clk 0:03:01.3]} 6. Be2 {[%clk 0:02:57.8]} 6... e5 {[%clk 0:03:01.5]}
7. dxe5 {[%clk 0:02:57.9]} 7... dxe5 {[%clk 0:03:01.3]} 8. Qxd8 {[%clk
0:02:58.8]} 8... Rxd8 {[%clk 0:03:01.4]} 9. Nd5 {[%clk 0:02:59.3]} 9... Rd7
{[%clk 0:02:57.6]} 10. Nxe5 {[%clk 0:02:42.8]} 10... Nxd5 {[%clk 0:02:57.3]} 11.
Nxd7 {[%clk 0:02:43.3]} 11... Nb4 {[%clk 0:02:57.4]} 12. Nxb8 {[%clk 0:02:38.5]}
12... Nc2+ {[%clk 0:02:57.3]} 13. Kd1 {[%clk 0:02:37.7]} 13... Nxa1 {[%clk
0:02:57.6]} 14. Bf4 {[%clk 0:02:18.5]} 14... Rxb8 {[%clk 0:02:50.7]} 15. Kc1
{[%clk 0:02:11.5]} 15... Be6 {[%clk 0:02:37.4]} 16. Kb1 {[%clk 0:02:03.7]} 16...
f5 {[%clk 0:02:14.3]} 17. exf5 {[%clk 0:01:17.1]} 17... Bxf5+ {[%clk 0:02:13.7]}
18. Kxa1 {[%clk 0:01:17.6]} 18... Re8 {[%clk 0:02:10.2]} 19. Bd1 {[%clk
0:00:48.8]} 19... Bd3 {[%clk 0:02:00.8]} 20. Bb3 {[%clk 0:00:40.3]} 20... Re2
{[%clk 0:01:53]} 21. c5+ {[%clk 0:00:39.6]} 21... Kf8 {[%clk 0:01:45.8]} 22. Bc1
{[%clk 0:00:36.5]} 22... Rxf2 {[%clk 0:01:35.6]} 23. Rd1 {[%clk 0:00:36.2]}
23... Rf1 {[%clk 0:01:33.8]} 24. Rxf1+ {[%clk 0:00:33.4]} 24... Bxf1 {[%clk
0:01:33.9]} 25. g3 {[%clk 0:00:32.7]} 25... Bd4 {[%clk 0:01:32.2]} 26. Bf4
{[%clk 0:00:26.3]} 26... Bxc5 {[%clk 0:01:25.9]} 27. Bxc7 {[%clk 0:00:26]} 27...
Bd3 {[%clk 0:01:23.6]} 28. Bd5 {[%clk 0:00:22.5]} 28... b6 {[%clk 0:01:21.9]}
29. a3 {[%clk 0:00:20.6]} 29... a5 {[%clk 0:01:21.7]} 30. Ka2 {[%clk 0:00:20.4]}
30... Ke7 {[%clk 0:01:16.7]} 31. Kb3 {[%clk 0:00:18.2]} 31... Kd7 {[%clk
0:01:09.2]} 32. Be5 {[%clk 0:00:16.9]} 32... h5 {[%clk 0:01:02.1]} 33. Kc3
{[%clk 0:00:16.8]} 33... Ba6 {[%clk 0:00:57.7]} 34. b4 {[%clk 0:00:15.7]} 34...
axb4+ {[%clk 0:00:56.7]} 35. axb4 {[%clk 0:00:16.6]} 35... Be7 {[%clk
0:00:54.7]} 36. Bf7 {[%clk 0:00:15.8]} 36... h4 {[%clk 0:00:48.9]} 37. Bxg6
{[%clk 0:00:13.7]} 37... hxg3 {[%clk 0:00:48.2]} 38. hxg3 {[%clk 0:00:12.5]}
38... Ke6 {[%clk 0:00:46.7]} 39. Bd4 {[%clk 0:00:12.7]} 39... Bd8 {[%clk
0:00:46.6]} 40. Be4 {[%clk 0:00:11.4]} 40... Be2 {[%clk 0:00:44.2]} 41. Kd2
{[%clk 0:00:09.4]} 41... Bg4 {[%clk 0:00:42.2]} 42. Ke3 {[%clk 0:00:07.4]} 42...
Bg5+ {[%clk 0:00:41.1]} 43. Kd3 {[%clk 0:00:07.7]} 43... Be7 {[%clk 0:00:36]}
44. b5 {[%clk 0:00:07]} 44... Bd8 {[%clk 0:00:34.9]} 45. Ke3 {[%clk 0:00:04.6]}
45... Bc7 {[%clk 0:00:32.9]} 46. Kf2 {[%clk 0:00:03.6]} 46... Ke7 {[%clk
0:00:26.9]} 47. Bf3 {[%clk 0:00:03]} 47... Bd7 {[%clk 0:00:26.4]} 48. Be2 {[%clk
0:00:02.9]} 48... Ke6 {[%clk 0:00:25.7]} 49. g4 {[%clk 0:00:03.4]} 49... Kd5
{[%clk 0:00:24.5]} 50. Be3 {[%clk 0:00:03.6]} 50... Ke4 {[%clk 0:00:19.8]} 51.
Bf3+ {[%clk 0:00:02.8]} 51... Ke5 {[%clk 0:00:19.9]} 52. Be2 {[%clk 0:00:02.5]}
52... Ke4 {[%clk 0:00:19.8]} 53. g5 {[%clk 0:00:03]} 53... Kf5 {[%clk
0:00:19.4]} 54. Bd3+ {[%clk 0:00:02.9]} 54... Ke6 {[%clk 0:00:17.7]} 55. g6
{[%clk 0:00:03.8]} 55... Kf6 {[%clk 0:00:12.7]} 56. Bd4+ {[%clk 0:00:03.8]}
56... Ke7 {[%clk 0:00:11.3]} 57. g7 {[%clk 0:00:04.2]} 57... Be6 {[%clk
0:00:11.5]} 58. Bh7 {[%clk 0:00:03.8]} 58... Kd6 {[%clk 0:00:09.1]} 59. g8=Q
{[%clk 0:00:03.3]} 59... Bxg8 {[%clk 0:00:09]} 60. Bxg8 {[%clk 0:00:04.2]} 60...
Kd7 {[%clk 0:00:09.3]} 61. Kf3 {[%clk 0:00:04.4]} 61... Ke7 {[%clk 0:00:09.1]}
62. Ke4 {[%clk 0:00:04.6]} 62... Kd6 {[%clk 0:00:09.3]} 63. Bc4 {[%clk
0:00:03.6]} 63... Kd7 {[%clk 0:00:09.3]} 64. Kd5 {[%clk 0:00:03.3]} 64... Bd8
{[%clk 0:00:08.9]} 65. Be5 {[%clk 0:00:03.4]} 65... Ke7 {[%clk 0:00:06.4]} 66.
Kc6 {[%clk 0:00:03.3]} 66... Ke8 {[%clk 0:00:05.1]} 67. Bc7 {[%clk 0:00:03.4]}
67... Bg5 {[%clk 0:00:04.7]} 68. Bxb6 {[%clk 0:00:03.6]} 68... Bf4 {[%clk
0:00:04.9]} 69. Bc5 {[%clk 0:00:02.9]} 69... Kd8 {[%clk 0:00:04.7]} 70. Be6
{[%clk 0:00:03]} 70... Ke8 {[%clk 0:00:04.7]} 71. b6 {[%clk 0:00:03.1]} 71...
Kd8 {[%clk 0:00:03.9]} 72. b7 {[%clk 0:00:03.4]} 72... Ke8 {[%clk 0:00:03.5]}
73. Bh3 {[%clk 0:00:03.4]} 73... Kf7 {[%clk 0:00:02.7]} 74. Bd6 {[%clk 0:00:03]}
74... Bg5 {[%clk 0:00:01.7]} 75. b8=Q {[%clk 0:00:03.1]} 75... Kg6 {[%clk
0:00:02.1]} 76. Qc8 {[%clk 0:00:02.6]} 76... Bf6 {[%clk 0:00:02]} 77. Qf5+
{[%clk 0:00:03.4]} 77... Kf7 {[%clk 0:00:01.3]} 78. Qe6+ {[%clk 0:00:03.1]} 1-0

[Event "*** Titled Tuesday Blitz"]
[Site "Chess.com"]
[Date "2020.05.05"]
[Round "8"]
[White "Sashadav97"]
[Black "putra48"]
[Result "1-0"]
[WhiteElo "2763"]
[BlackElo "2626"]
[TimeControl "180+1"]
[EndTime "11:37:20 PDT"]
[Termination "Sashadav97 won by resignation"]

1. d4 {[%clk 0:03:00.9]} 1... Nf6 {[%clk 0:02:57.8]} 2. c4 {[%clk 0:02:59.5]}
2... e6 {[%clk 0:02:56.3]} 3. Nc3 {[%clk 0:02:57.1]} 3... d5 {[%clk 0:02:56.3]}
4. cxd5 {[%clk 0:02:54.8]} 4... exd5 {[%clk 0:02:55.4]} 5. Bg5 {[%clk
0:02:54.6]} 5... c6 {[%clk 0:02:53.1]} 6. e3 {[%clk 0:02:54.7]} 6... Be7 {[%clk
0:02:52.7]} 7. Bd3 {[%clk 0:02:54.2]} 7... Nbd7 {[%clk 0:02:50.8]} 8. Nge2
{[%clk 0:02:54.2]} 8... O-O {[%clk 0:02:46.2]} 9. O-O {[%clk 0:02:51.5]} 9...
Re8 {[%clk 0:02:46.5]} 10. Qc2 {[%clk 0:02:46.9]} 10... Nf8 {[%clk 0:02:46.4]}
11. f3 {[%clk 0:02:46.5]} 11... g6 {[%clk 0:02:45.9]} 12. Rae1 {[%clk
0:02:43.3]} 12... Ne6 {[%clk 0:02:39.9]} 13. Bh4 {[%clk 0:02:42]} 13... Nh5
{[%clk 0:02:39.8]} 14. Bf2 {[%clk 0:02:33.6]} 14... b5 {[%clk 0:02:30.8]} 15.
Kh1 {[%clk 0:02:29.1]} 15... Bb7 {[%clk 0:02:30]} 16. e4 {[%clk 0:02:28.2]}
16... b4 {[%clk 0:02:24.5]} 17. Na4 {[%clk 0:02:23.5]} 17... Nhf4 {[%clk
0:02:18.1]} 18. Nxf4 {[%clk 0:02:18.3]} 18... Nxf4 {[%clk 0:02:18.8]} 19. e5
{[%clk 0:02:16.1]} 19... Nxd3 {[%clk 0:02:17.7]} 20. Qxd3 {[%clk 0:02:15.2]}
20... a5 {[%clk 0:02:18.6]} 21. Qd2 {[%clk 0:02:07.3]} 21... Ba6 {[%clk
0:02:18.6]} 22. Rg1 {[%clk 0:02:07.1]} 22... Bb5 {[%clk 0:02:19]} 23. Nc5 {[%clk
0:02:07.2]} 23... Bf8 {[%clk 0:01:54.3]} 24. Qf4 {[%clk 0:01:42.1]} 24... Bxc5
{[%clk 0:00:54.3]} 25. dxc5 {[%clk 0:01:41]} 25... Re6 {[%clk 0:00:55.2]} 26.
Bd4 {[%clk 0:01:38.1]} 26... Qe7 {[%clk 0:00:52.8]} 27. Rd1 {[%clk 0:01:31]}
27... Re8 {[%clk 0:00:49.9]} 28. Rd2 {[%clk 0:01:29.9]} 28... Qc7 {[%clk
0:00:44.8]} 29. Qh4 {[%clk 0:01:10.9]} 29... Qd8 {[%clk 0:00:31.2]} 30. Qg3
{[%clk 0:01:08.9]} 30... Qd7 {[%clk 0:00:27.6]} 31. h3 {[%clk 0:01:02]} 31...
R6e7 {[%clk 0:00:26.4]} 32. Qf4 {[%clk 0:00:49.2]} 32... Qc7 {[%clk 0:00:23.5]}
33. h4 {[%clk 0:00:42.6]} 33... Re6 {[%clk 0:00:22.1]} 34. Qh2 {[%clk 0:00:39]}
34... h5 {[%clk 0:00:17.8]} 35. f4 {[%clk 0:00:38.1]} 35... R6e7 {[%clk
0:00:15.5]} 36. f5 {[%clk 0:00:38.1]} 36... Rxe5 {[%clk 0:00:13.7]} 37. Bxe5
{[%clk 0:00:33.7]} 37... Qxe5 {[%clk 0:00:13.7]} 38. fxg6 {[%clk 0:00:29.7]}
38... fxg6 {[%clk 0:00:12.8]} 39. Qxe5 {[%clk 0:00:29]} 39... Rxe5 {[%clk
0:00:13]} 40. g4 {[%clk 0:00:29.5]} 40... Re4 {[%clk 0:00:13.2]} 41. gxh5 {[%clk
0:00:29]} 41... Rxh4+ {[%clk 0:00:13.4]} 42. Rh2 {[%clk 0:00:29.1]} 42... Rxh2+
{[%clk 0:00:11.4]} 43. Kxh2 {[%clk 0:00:30]} 43... Bd3 {[%clk 0:00:12]} 44. hxg6
{[%clk 0:00:28.9]} 44... Kg7 {[%clk 0:00:12.6]} 45. Re1 {[%clk 0:00:26.4]} 45...
Bf5 {[%clk 0:00:12.6]} 46. Re7+ {[%clk 0:00:22]} 46... Kxg6 {[%clk 0:00:12.7]}
47. Ra7 {[%clk 0:00:22.5]} 47... Kf6 {[%clk 0:00:11.8]} 48. Rxa5 {[%clk
0:00:19.5]} 48... d4 {[%clk 0:00:11.2]} 49. Kg3 {[%clk 0:00:19.4]} 49... Ke5
{[%clk 0:00:11.6]} 50. Ra4 {[%clk 0:00:17.9]} 50... d3 {[%clk 0:00:10.9]} 51.
Kf2 {[%clk 0:00:17.5]} 51... Kd4 {[%clk 0:00:11]} 52. Rxb4+ {[%clk 0:00:17]}
52... Kxc5 {[%clk 0:00:11.9]} 53. Rf4 {[%clk 0:00:17.3]} 53... Bg6 {[%clk
0:00:11.6]} 54. Ke3 {[%clk 0:00:17.3]} 54... Kd5 {[%clk 0:00:11.3]} 55. Rd4+
{[%clk 0:00:17.3]} 55... Kc5 {[%clk 0:00:11]} 56. a4 {[%clk 0:00:14.9]} 56...
Kb6 {[%clk 0:00:09.8]} 57. b4 {[%clk 0:00:14.9]} 57... Bf5 {[%clk 0:00:09]} 58.
Rd6 {[%clk 0:00:13.6]} 58... Kc7 {[%clk 0:00:08.4]} 59. Rxd3 {[%clk 0:00:13]}
59... Bxd3 {[%clk 0:00:08.1]} 60. Kxd3 {[%clk 0:00:13.9]} 60... c5 {[%clk
0:00:09]} 61. bxc5 {[%clk 0:00:13.4]} 61... Kc6 {[%clk 0:00:09.2]} 62. Kc4
{[%clk 0:00:13.9]} 62... Kc7 {[%clk 0:00:09.8]} 63. Kb5 {[%clk 0:00:14.2]} 63...
Kb7 {[%clk 0:00:10.7]} 64. c6+ {[%clk 0:00:14.5]} 64... Kc7 {[%clk 0:00:11.2]}
65. Kc5 {[%clk 0:00:15.2]} 65... Kc8 {[%clk 0:00:11.5]} 66. Kd6 {[%clk
0:00:15.4]} 66... Kd8 {[%clk 0:00:11.9]} 67. a5 {[%clk 0:00:15.2]} 67... Kc8
{[%clk 0:00:12.2]} 68. c7 {[%clk 0:00:15.7]} 68... Kb7 {[%clk 0:00:12.3]} 69.
Kd7 {[%clk 0:00:15.8]} 69... Ka7 {[%clk 0:00:12.9]} 70. a6 {[%clk 0:00:12.7]}
1-0

[Event "*** Titled Tuesday Blitz"]
[Site "Chess.com"]
[Date "2020.05.05"]
[Round "8"]
[White "SaySpade4VIP"]
[Black "Korona_91"]
[Result "1/2-1/2"]
[WhiteElo "2621"]
[BlackElo "2467"]
[TimeControl "180+1"]
[EndTime "11:37:24 PDT"]
[Termination "Game drawn by repetition"]

1. d4 {[%clk 0:02:57.7]} 1... g6 {[%clk 0:02:55.2]} 2. e4 {[%clk 0:02:57.1]}
2... Bg7 {[%clk 0:02:55]} 3. Nf3 {[%clk 0:02:57.7]} 3... d6 {[%clk 0:02:54.8]}
4. Bc4 {[%clk 0:02:57.9]} 4... e6 {[%clk 0:02:52.8]} 5. c3 {[%clk 0:02:56.6]}
5... Ne7 {[%clk 0:02:51.6]} 6. O-O {[%clk 0:02:55.1]} 6... d5 {[%clk 0:02:51.9]}
7. Bd3 {[%clk 0:02:45.9]} 7... b6 {[%clk 0:02:46.6]} 8. Re1 {[%clk 0:02:43]}
8... Bb7 {[%clk 0:02:46]} 9. e5 {[%clk 0:02:43.6]} 9... c5 {[%clk 0:02:44.2]}
10. a3 {[%clk 0:02:42]} 10... a5 {[%clk 0:02:40.9]} 11. Nbd2 {[%clk 0:02:31.4]}
11... c4 {[%clk 0:02:35.5]} 12. Bc2 {[%clk 0:02:31.2]} 12... b5 {[%clk
0:02:36.1]} 13. Nf1 {[%clk 0:02:29]} 13... Nbc6 {[%clk 0:02:34]} 14. h4 {[%clk
0:02:23.9]} 14... b4 {[%clk 0:02:30.1]} 15. Ne3 {[%clk 0:02:12.8]} 15... h5
{[%clk 0:02:10.3]} 16. Ng5 {[%clk 0:02:05.8]} 16... b3 {[%clk 0:01:54.7]} 17.
Bb1 {[%clk 0:01:59.3]} 17... Qd7 {[%clk 0:01:53.9]} 18. Qf3 {[%clk 0:01:56.6]}
18... Nf5 {[%clk 0:01:50.2]} 19. Bxf5 {[%clk 0:01:53.8]} 19... gxf5 {[%clk
0:01:51.1]} 20. g3 {[%clk 0:01:53.5]} 20... Ne7 {[%clk 0:01:47]} 21. Ng2 {[%clk
0:01:47.1]} 21... Ng6 {[%clk 0:01:44.7]} 22. Nh3 {[%clk 0:01:46.5]} 22... O-O-O
{[%clk 0:01:37.8]} 23. Bg5 {[%clk 0:01:33.9]} 23... Rde8 {[%clk 0:01:37.6]} 24.
Ngf4 {[%clk 0:01:33.2]} 24... Bh6 {[%clk 0:01:28.1]} 25. Nxh5 {[%clk 0:01:25.3]}
25... Bxg5 {[%clk 0:01:13.5]} 26. Nxg5 {[%clk 0:01:26.2]} 26... Rxh5 {[%clk
0:01:09.2]} 27. Qxh5 {[%clk 0:01:24.7]} 27... f4 {[%clk 0:01:09.8]} 28. Qf3
{[%clk 0:01:16]} 28... Qe7 {[%clk 0:01:04.3]} 29. Nh7 {[%clk 0:01:01.8]} 29...
Rh8 {[%clk 0:00:59.8]} 30. Nf6 {[%clk 0:01:00.2]} 30... Qf8 {[%clk 0:01:00]} 31.
h5 {[%clk 0:00:58.1]} 31... Ne7 {[%clk 0:00:52.2]} 32. Qxf4 {[%clk 0:00:57.6]}
32... Nf5 {[%clk 0:00:48.5]} 33. Kf1 {[%clk 0:00:46.8]} 33... Qg7 {[%clk
0:00:45.2]} 34. Ke2 {[%clk 0:00:42.8]} 34... Nh6 {[%clk 0:00:41.8]} 35. g4
{[%clk 0:00:38.4]} 35... Bc6 {[%clk 0:00:40.6]} 36. Rh1 {[%clk 0:00:36.9]} 36...
Kb7 {[%clk 0:00:37.9]} 37. Rag1 {[%clk 0:00:35.7]} 37... Kb6 {[%clk 0:00:37.3]}
38. f3 {[%clk 0:00:32.6]} 38... Kb7 {[%clk 0:00:35.1]} 39. Kd2 {[%clk
0:00:23.4]} 39... Kb6 {[%clk 0:00:35.3]} 40. Rh2 {[%clk 0:00:17.5]} 40... Kb7
{[%clk 0:00:34.3]} 41. g5 {[%clk 0:00:17.7]} 41... Nf5 {[%clk 0:00:34.2]} 42. g6
{[%clk 0:00:18.1]} 42... Nh6 {[%clk 0:00:27]} 43. Rg5 {[%clk 0:00:15.3]} 43...
Nf5 {[%clk 0:00:25.6]} 44. Rhg2 {[%clk 0:00:14.4]} 44... fxg6 {[%clk 0:00:25.8]}
45. Rxg6 {[%clk 0:00:14.4]} 45... Qf7 {[%clk 0:00:25.6]} 46. h6 {[%clk
0:00:10.9]} 46... Kb6 {[%clk 0:00:24]} 47. h7 {[%clk 0:00:09.8]} 47... Rxh7
{[%clk 0:00:23]} 48. Nxh7 {[%clk 0:00:10.7]} 48... Qxh7 {[%clk 0:00:23.9]} 49.
Rg1 {[%clk 0:00:05.7]} 49... Nh4 {[%clk 0:00:23.7]} 50. Qg5 {[%clk 0:00:03.4]}
50... Nxg6 {[%clk 0:00:23.5]} 51. Qxg6 {[%clk 0:00:03.6]} 51... Qh2+ {[%clk
0:00:23.9]} 52. Qg2 {[%clk 0:00:02.9]} 52... Qf4+ {[%clk 0:00:24.3]} 53. Kd1
{[%clk 0:00:03.2]} 53... Qe3 {[%clk 0:00:24.5]} 54. Re1 {[%clk 0:00:02]} 54...
Qd3+ {[%clk 0:00:24.7]} 55. Kc1 {[%clk 0:00:01.9]} 55... Be8 {[%clk 0:00:25]}
56. Qd2 {[%clk 0:00:02.2]} 56... Qxf3 {[%clk 0:00:25.1]} 57. Qe2 {[%clk
0:00:02.3]} 57... Qf5 {[%clk 0:00:25.2]} 58. Kd2 {[%clk 0:00:01.9]} 58... Bg6
{[%clk 0:00:25.3]} 59. Ke3 {[%clk 0:00:02.4]} 59... Qe4+ {[%clk 0:00:25.6]} 60.
Kf2 {[%clk 0:00:02.9]} 60... Qf4+ {[%clk 0:00:26.1]} 61. Qf3 {[%clk 0:00:02.9]}
61... Qd2+ {[%clk 0:00:25.7]} 62. Re2 {[%clk 0:00:03.1]} 62... Qc1 {[%clk
0:00:26.1]} 63. Qg4 {[%clk 0:00:01.4]} 63... Bf5 {[%clk 0:00:26.3]} 64. Qg8
{[%clk 0:00:02.1]} 64... Qf4+ {[%clk 0:00:26.7]} 65. Ke1 {[%clk 0:00:02.2]}
65... Qc1+ {[%clk 0:00:27.2]} 66. Kf2 {[%clk 0:00:03.1]} 66... Qf4+ {[%clk
0:00:27.7]} 67. Kg2 {[%clk 0:00:03.7]} 67... Be4+ {[%clk 0:00:27.7]} 68. Rxe4
{[%clk 0:00:03.5]} 68... Qxe4+ {[%clk 0:00:27.5]} 69. Kg3 {[%clk 0:00:04]} 69...
Qe3+ {[%clk 0:00:27.9]} 70. Kg2 {[%clk 0:00:04.5]} 70... Qe2+ {[%clk 0:00:28.3]}
71. Kg3 {[%clk 0:00:04.8]} 71... Qe1+ {[%clk 0:00:28.8]} 72. Kg2 {[%clk
0:00:05.3]} 72... Qd2+ {[%clk 0:00:29.3]} 73. Kf3 {[%clk 0:00:04.5]} 73... Qd1+
{[%clk 0:00:29.4]} 74. Kf2 {[%clk 0:00:04.3]} 74... Qd2+ {[%clk 0:00:29.7]} 75.
Kf3 {[%clk 0:00:04.9]} 75... Qd1+ {[%clk 0:00:29.8]} 76. Kf2 {[%clk 0:00:05.4]}
76... Qc2+ {[%clk 0:00:30.4]} 77. Kf3 {[%clk 0:00:04.8]} 77... Qe4+ {[%clk
0:00:30.9]} 78. Kf2 {[%clk 0:00:05]} 78... Qf4+ {[%clk 0:00:31.4]} 79. Kg2
{[%clk 0:00:05]} 79... Qe4+ {[%clk 0:00:31.5]} 80. Kf2 {[%clk 0:00:05.3]} 80...
Qf4+ {[%clk 0:00:31.8]} 81. Kg2 {[%clk 0:00:05.7]} 81... Qd2+ {[%clk 0:00:32.3]}
82. Kf3 {[%clk 0:00:05.5]} 1/2-1/2